bitfinex/quotes_BTCUSD_20250803
["timestamp","ask_amount","ask_price","bid_price","bid_amount"]
[1754199796747,5.11015359,113830.0,113820.0,0.39048892]
[1754199798054,4.783001,113830.0,113820.0,0.39048892]
[1754199799084,4.79675798,113830.0,113820.0,0.39048892]
[1754199799292,4.93043798,113830.0,113820.0,0.39048892]
[1754199799487,0.14743698,113830.0,113820.0,0.39048892]
[1754199799688,4.93043798,113830.0,113820.0,0.39048892]
[1754199802194,4.93043798,113830.0,113820.0,0.04222779]
[1754199807353,4.916681,113830.0,113820.0,0.04222779]
[1754199809356,4.916681,113830.0,113820.0,0.39048892]
[1754199809931,4.94144993,113830.0,113820.0,0.39048892]
[1754199810130,0.15844893,113830.0,113820.0,0.39048892]
[1754199810339,4.9552069,113830.0,113820.0,0.39048892]
[1754199814809,4.94144993,113830.0,113820.0,0.39048892]
[1754199816728,4.94145,113830.0,113820.0,0.39048892]
[1754199816895,0.158449,113830.0,113820.0,0.39048892]
[1754199817099,4.94145,113830.0,113820.0,0.39048892]
[1754199818935,0.17220598,113830.0,113820.0,0.39048892]
[1754199819143,4.95520698,113830.0,113820.0,0.39048892]
[1754199819346,4.95520703,113830.0,113820.0,0.39048892]
[1754199822243,4.95520721,113830.0,113820.0,0.39048892]
[1754199824288,0.17220621,113830.0,113820.0,0.39048892]
[1754199824486,4.95520721,113830.0,113820.0,0.39048892]
[1754199825825,4.95520721,113830.0,113820.0,0.04222779]
[1754199826402,4.94145023,113830.0,113820.0,0.04222779]
[1754199826606,0.15844923,113830.0,113820.0,0.04222779]
[1754199826808,4.94145023,113830.0,113820.0,0.04222779]
[1754199828008,4.94145019,113830.0,113820.0,0.04222779]
[1754199829329,4.9552072,113830.0,113820.0,0.04222779]
[1754199829975,4.82143098,113830.0,113820.0,0.04222779]
[1754199830948,4.81327078,113830.0,113820.0,0.04222779]
[1754199831179,0.03026978,113830.0,113820.0,0.04222779]
[1754199831481,4.94695078,113830.0,113820.0,0.04222779]
[1754199832594,4.94690686,113830.0,113820.0,0.04222779]
[1754199833214,0.16390586,113830.0,113820.0,0.04222779]
[1754199833439,4.94690686,113830.0,113820.0,0.04222779]
[1754199834074,4.94690686,113830.0,113820.0,0.06865779]
[1754199834610,4.94690686,113830.0,113820.0,0.11034968]
[1754199834816,4.93319377,113830.0,113820.0,0.11034968]
[1754199835213,0.15019277,113830.0,113820.0,0.11034968]
[1754199835413,4.93319377,113830.0,113820.0,0.06865779]
[1754199838179,4.610425,113830.0,113820.0,0.06865779]
[1754199838739,0.34826113,113840.0,113820.0,0.06865779]
[1754199838955,4.610425,113830.0,113820.0,0.06865779]
[1754199839378,4.744065,113830.0,113820.0,0.06865779]
[1754199839639,4.744065,113830.0,113820.0,0.06765779]
[1754199839865,0.13364,113830.0,113820.0,0.41591892]
[1754199840069,4.744065,113830.0,113820.0,0.41591892]
[1754199840667,4.744065,113830.0,113820.0,0.41691892]
[1754199841536,9.794065,113830.0,113820.0,0.41691892]
[1754199842115,9.80232138,113830.0,113820.0,0.41691892]
[1754199843144,5.19189638,113830.0,113820.0,0.41691892]
[1754199843633,5.19189638,113830.0,113820.0,0.06865779]
[1754199845342,5.19189638,113830.0,113820.0,0.04222779]
[1754199849667,0.14189638,113830.0,113820.0,0.04222779]
[1754199850157,5.19189638,113830.0,113820.0,0.04222779]
[1754199851842,5.19189638,113830.0,113820.0,0.06865879]
[1754199853128,5.19189641,113830.0,113820.0,0.06865879]
[1754199855851,5.1918964,113830.0,113820.0,0.06865879]
[1754199856913,5.1918964,113830.0,113820.0,0.04222779]
[1754199858865,5.1918964,113830.0,113820.0,0.39048892]
[1754199860146,5.1918964,113830.0,113820.0,0.04222779]
[1754199860793,0.1418964,113830.0,113820.0,0.04222779]
[1754199861014,5.1918964,113830.0,113820.0,0.04222779]
[1754199867506,5.19189639,113830.0,113820.0,0.04222779]
[1754199870500,5.19189639,113830.0,113820.0,0.39048892]
[1754199872084,5.05825639,113830.0,113820.0,0.39048892]
[1754199872327,5.19185639,113830.0,113820.0,0.43218091]
[1754199872718,5.19185639,113830.0,113820.0,0.45860991]
[1754199873745,5.19185639,113830.0,113820.0,0.41691792]
[1754199874351,5.19185639,113830.0,113820.0,0.06865679]
[1754199874730,5.19185639,113830.0,113820.0,0.41691792]
[1754199882548,5.20561336,113830.0,113820.0,0.41691792]
[1754199882938,0.15561336,113830.0,113820.0,0.41691792]
[1754199883149,5.20561336,113830.0,113820.0,0.41691792]
[1754199883922,5.20557336,113830.0,113820.0,0.41691792]
[1754199884336,5.20557334,113830.0,113820.0,0.41691792]
[1754199885770,5.57034767,113830.0,113820.0,0.02847679]
[1754199885989,6.02647008,113830.0,113820.0,0.00204779]
[1754199886290,6.03026352,113830.0,113820.0,0.00204779]
[1754199886491,5.66445198,113830.0,113820.0,0.00204779]
[1754199886953,5.66445198,113830.0,113820.0,0.00104779]
[1754199886954,5.57561442,113830.0,113820.0,0.00104779]
[1754199887415,5.57561442,113830.0,113820.0,4.779e-05]
[1754199887615,5.57761442,113830.0,113820.0,4.779e-05]
[1754199887855,5.57961442,113830.0,113820.0,4.779e-05]
[1754199890280,5.5933731,113830.0,113820.0,4.779e-05]
[1754199891261,5.68221066,113830.0,113820.0,4.779e-05]
[1754199891532,5.5933731,113830.0,113820.0,4.779e-05]
[1754199893394,5.24511197,113830.0,113820.0,4.779e-05]
[1754199893616,5.5933731,113830.0,113820.0,4.779e-05]
[1754199893837,6.56600693,113830.0,113820.0,4.779e-05]
[1754199894054,6.75224825,113830.0,113820.0,4.779e-05]
[1754199894295,6.84108581,113830.0,113820.0,4.779e-05]
[1754199894754,6.86752281,113830.0,113820.0,4.779e-05]
[1754199896622,6.86751439,113830.0,113820.0,4.779e-05]
[1754199897235,6.88127423,113830.0,113820.0,4.779e-05]
[1754199897471,1.83127423,113830.0,113820.0,4.779e-05]
[1754199897706,6.88127423,113830.0,113820.0,4.779e-05]
[1754199899026,5.78665381,113830.0,113820.0,4.779e-05]
[1754199899268,5.93491494,113830.0,113820.0,0.03529779]
[1754199899490,6.04203794,113830.0,113820.0,0.03725779]
[1754199899717,5.90847794,113830.0,113820.0,0.03725779]
[1754199899932,6.04203794,113830.0,113820.0,0.03725779]
[1754199900139,5.69377681,113830.0,113820.0,0.03725779]
[1754199900356,6.04203794,113830.0,113820.0,0.03725779]
[1754199900835,5.90847794,113830.0,113820.0,0.03725779]
[1754199901043,6.04203794,113830.0,113820.0,0.03725779]
[1754199901259,5.90847794,113830.0,113820.0,0.03725779]
[1754199901471,6.02301422,113830.0,113820.0,0.03725779]
[1754199902547,5.97829178,113830.0,113820.0,0.03725779]
[1754199902753,6.11185178,113830.0,113820.0,0.03725779]
[1754199903249,6.11183029,113830.0,113820.0,0.03725779]
[1754199905291,5.97827029,113830.0,113820.0,0.03725779]
[1754199905503,6.02299273,113830.0,113820.0,0.03725779]
[1754199907224,6.02299036,113830.0,113820.0,0.03725779]
[1754199909343,6.04197239,113830.0,113820.0,0.03725779]
[1754199909567,5.69371126,113830.0,113820.0,0.03725779]
[1754199910010,6.02549946,113830.0,113820.0,0.03725779]
[1754199910237,6.04197675,113830.0,113820.0,0.03725779]
[1754199911317,0.99197675,113830.0,113820.0,0.03725779]
[1754199911528,6.04197675,113830.0,113820.0,0.03725779]
[1754199912998,6.13081431,113830.0,113820.0,4.779e-05]
[1754199914100,6.04197675,113830.0,113820.0,4.779e-05]
[1754199916102,6.04197675,113830.0,113820.0,0.03225779]
[1754199918961,6.04199242,113830.0,113820.0,0.03225779]
[1754199919177,6.21769302,113830.0,113820.0,4.779e-05]
[1754199920294,6.04199242,113830.0,113820.0,4.779e-05]
[1754199921347,6.13082998,113830.0,113820.0,4.779e-05]
[1754199922313,6.65479171,113830.0,113820.0,4.779e-05]
[1754199922535,6.68122871,113830.0,113820.0,4.779e-05]
[1754199924681,6.66746887,113830.0,113820.0,4.779e-05]
[1754199925938,6.89124732,113830.0,113820.0,4.779e-05]
[1754199926488,6.46754732,113830.0,113820.0,4.779e-05]
[1754199927989,6.4813073,113830.0,113820.0,4.779e-05]
[1754199931081,5.22571604,113820.0,113810.0,0.02825779]
[1754199931301,6.18834731,113820.0,113810.0,0.02830558]
[1754199931486,6.18834731,113820.0,113810.0,0.03148558]
[1754199931953,1.33834731,113820.0,113810.0,0.02830558]
[1754199932201,6.38834731,113820.0,113810.0,0.02830558]
[1754199932433,6.38834731,113820.0,113810.0,0.03148558]
[1754199932857,6.41478631,113820.0,113810.0,0.02830558]
[1754199933064,6.41478631,113820.0,113810.0,4.779e-05]
[1754199933498,6.41578631,113820.0,113810.0,0.03162779]
[1754199933717,6.44078631,113820.0,113810.0,4.779e-05]
[1754199933929,6.44078631,113820.0,113810.0,0.03162779]
[1754199934552,6.46704848,113820.0,113810.0,0.03162779]
[1754199934771,6.46704848,113820.0,113810.0,0.03480779]
[1754199935460,6.46704848,113820.0,113810.0,4.779e-05]
[1754199936724,6.49082693,113820.0,113810.0,4.779e-05]
[1754199936955,6.48982693,113820.0,113810.0,4.779e-05]
[1754199937182,6.46905077,113820.0,113810.0,4.779e-05]
[1754199937389,6.2685606,113820.0,113810.0,4.779e-05]
[1754199937616,6.44727664,113820.0,113810.0,4.779e-05]
[1754199938046,5.05,113810.0,113800.0,0.04119403]
[1754199938254,5.59198258,113810.0,113800.0,0.04363008]
[1754199938712,5.60574367,113810.0,113800.0,0.04363008]
[1754199939179,5.60572414,113810.0,113800.0,0.04363008]
[1754199939826,5.24101421,113810.0,113800.0,0.04363008]
[1754199940076,5.59027534,113810.0,113800.0,0.04363008]
[1754199940717,5.61871734,113810.0,113800.0,0.04363008]
[1754199940953,6.06741734,113810.0,113800.0,0.04363008]
[1754199941165,6.04097534,113810.0,113800.0,0.04363008]
[1754199941801,6.1298129,113810.0,113800.0,0.04363008]
[1754199942684,5.78155177,113810.0,113800.0,0.04363008]
[1754199942901,5.9414569,113810.0,113800.0,0.04363008]
[1754199943359,5.85297934,113810.0,113800.0,0.04363008]
[1754199943588,5.71905934,113810.0,113800.0,0.04363008]
[1754199943843,5.85297934,113810.0,113800.0,0.04363008]
[1754199944363,6.03086082,113810.0,113800.0,0.03481973]
[1754199944589,6.03086082,113810.0,113800.0,0.03205605]
[1754199944590,6.11969838,113810.0,113800.0,0.03205605]
[1754199944802,6.11969838,113810.0,113800.0,0.0232457]
[1754199944803,6.09498729,113810.0,113800.0,0.0232457]
[1754199945026,6.1196959,113810.0,113800.0,0.0232457]
[1754199945222,6.1196959,113810.0,113800.0,0.01443535]
[1754199945716,6.1196959,113810.0,113800.0,0.005625]
[1754199945908,6.1461369,113810.0,113800.0,0.005625]
[1754199946134,4.861644,113800.0,113780.0,0.0004]
[1754199946406,5.34378513,113790.0,113780.0,0.0004]
[1754199946657,5.35202133,113790.0,113780.0,0.00236]
[1754199946849,5.0037602,113790.0,113780.0,0.00236]
[1754199947018,5.01752231,113790.0,113780.0,0.00554]
[1754199947289,5.0037602,113790.0,113780.0,0.00554]
[1754199947691,4.8698802,113790.0,113780.0,0.00554]
[1754199947870,4.8698802,113790.0,113780.0,0.31529071]
[1754199947871,5.0037602,113790.0,113780.0,0.31529071]
[1754199948075,5.0037602,113790.0,113780.0,0.34687071]
[1754199948607,5.0037602,113790.0,113780.0,0.34787071]
[1754199948818,4.995524,113790.0,113780.0,0.34787071]
[1754199949307,5.00376487,113790.0,113780.0,0.34787071]
[1754199949980,4.995524,113790.0,113780.0,0.34787071]
[1754199950227,5.00376599,113790.0,113780.0,0.34787071]
[1754199950442,5.01752743,113790.0,113780.0,0.34787071]
[1754199950660,5.01780743,113790.0,113780.0,0.34787071]
[1754199950896,5.00956544,113790.0,113780.0,0.34787071]
[1754199952365,5.01781061,113790.0,113780.0,0.34787071]
[1754199953000,5.00956544,113790.0,113780.0,0.34787071]
[1754199953216,5.017812,113790.0,113780.0,0.34787071]
[1754199953585,5.00956544,113790.0,113780.0,0.34787071]
[1754199953746,5.02572993,113790.0,113780.0,0.34787071]
[1754199954218,5.03397806,113790.0,113780.0,0.34787071]
[1754199958880,5.03397806,113790.0,113780.0,0.03812]
[1754199959075,5.03397806,113790.0,113780.0,0.34787071]
[1754199961221,0.17233406,113790.0,113780.0,0.34787071]
[1754199961467,5.03397806,113790.0,113780.0,0.34787071]
[1754199962433,5.05048574,113790.0,113780.0,0.34787071]
[1754199966051,5.05048574,113790.0,113780.0,0.38534158]
[1754199966881,5.05048574,113790.0,113780.0,0.38649064]
[1754199968089,5.0367243,113790.0,113780.0,0.38649064]
[1754199971147,5.05048562,113790.0,113780.0,0.38649064]
[1754199972612,5.05048862,113790.0,113780.0,0.38649064]
[1754199973986,5.05048862,113790.0,113780.0,0.03812]
[1754199974203,5.05048862,113790.0,113780.0,0.38649064]
[1754199974637,0.18884462,113790.0,113780.0,0.38649064]
[1754199974846,5.0367273,113790.0,113780.0,0.38649064]
[1754199975412,5.03673479,113790.0,113780.0,0.38649064]
[1754199976102,5.03871479,113790.0,113780.0,0.0014]
[1754199976224,5.41061543,113790.0,113780.0,0.0014]
[1754199977840,5.42437717,113790.0,113780.0,0.0014]
[1754199978795,5.07600653,113790.0,113780.0,0.0014]
[1754199979653,5.05247653,113790.0,113780.0,0.0014]
[1754199979860,5.05247653,113790.0,113780.0,0.03613]
[1754199981127,5.05247653,113790.0,113780.0,0.0391]
[1754199982525,5.05243653,113790.0,113780.0,0.0391]
[1754199983882,4.91633653,113790.0,113780.0,0.35094845]
[1754199984094,5.05041653,113790.0,113780.0,0.35094845]
[1754199984293,4.91634035,113790.0,113780.0,0.35094845]
[1754199984525,5.05038035,113790.0,113780.0,0.35094845]
[1754199986667,5.03661861,113790.0,113780.0,0.35094845]
[1754199987031,5.03661869,113790.0,113780.0,0.35094845]
[1754199989353,0.17497469,113790.0,113780.0,0.35094845]
[1754199989584,5.05038006,113790.0,113780.0,0.35094845]
[1754199990226,5.05038015,113790.0,113780.0,0.35094845]
[1754199990446,4.91634015,113790.0,113780.0,0.35094845]
[1754199990645,5.05034015,113790.0,113780.0,0.35094845]
[1754199992367,5.05034191,113790.0,113780.0,0.35094845]
[1754199993007,5.05034204,113790.0,113780.0,0.35094845]
[1754199993885,5.05034208,113790.0,113780.0,0.35094845]
[1754199994639,5.03658071,113790.0,113780.0,0.35094845]
[1754199997438,5.03856087,113790.0,113780.0,0.35094845]
[1754199998128,5.05232223,113790.0,113780.0,0.35094845]
[1754199998819,5.05232223,113790.0,113780.0,0.38957186]
[1754199999990,0.19067823,113790.0,113780.0,0.38957186]
[1754200000201,5.05232223,113790.0,113780.0,0.38957186]
[1754200001731,5.05232227,113790.0,113780.0,0.38957186]
[1754200004498,5.03856091,113790.0,113780.0,0.38957186]
[1754200006254,5.03856091,113790.0,113780.0,0.04118]
[1754200006475,5.03856091,113790.0,113780.0,0.38957186]
[1754200008986,5.05232244,113790.0,113780.0,0.38957186]
[1754200009493,5.05232244,113790.0,113780.0,0.38452186]
[1754200012589,5.05232244,113790.0,113780.0,0.03613]
[1754200012861,5.05232244,113790.0,113780.0,0.38452186]
[1754200013361,5.42334868,113790.0,113780.0,0.0014]
[1754200014017,5.07495682,113790.0,113780.0,0.0014]
[1754200014837,5.06119529,113790.0,113780.0,0.0014]
[1754200017533,5.05939529,113790.0,113780.0,0.0014]
[1754200019039,5.07315748,113790.0,113780.0,0.0014]
[1754200019256,5.07314998,113790.0,113780.0,0.0014]
[1754200019718,0.21150598,113790.0,113780.0,0.0014]
[1754200020181,5.07314998,113790.0,113780.0,0.0014]
[1754200020605,5.16198754,113790.0,113780.0,0.0014]
[1754200022441,5.07314998,113790.0,113780.0,0.0014]
[1754200024475,5.42154184,113790.0,113780.0,0.0014]
[1754200024668,5.40957965,113790.0,113780.0,0.0014]
[1754200026536,5.06118779,113790.0,113780.0,0.0014]
[1754200026750,5.40132322,113790.0,113780.0,0.0014]
[1754200026967,5.40957883,113790.0,113780.0,0.0014]
[1754200027962,5.40777883,113790.0,113780.0,0.0014]
[1754200029005,5.51037845,113790.0,113780.0,0.0014]
[1754200029667,5.49386558,113790.0,113780.0,0.0014]
[1754200029870,5.51037603,113790.0,113780.0,0.0014]
[1754200030534,5.42153847,113790.0,113780.0,0.0014]
[1754200031175,5.42333847,113790.0,113780.0,0.0014]
[1754200032458,5.07494661,113790.0,113780.0,0.0014]
[1754200032690,5.42153847,113790.0,113780.0,0.0014]
[1754200034912,5.40777641,113790.0,113780.0,0.0014]
[1754200035118,5.38694641,113790.0,113780.0,0.0014]
[1754200036869,5.47578397,113790.0,113780.0,0.0014]
[1754200037281,5.49720397,113790.0,113780.0,0.0014]
[1754200037934,5.50916656,113790.0,113780.0,0.0014]
[1754200041626,0.64752256,113790.0,113780.0,0.0014]
[1754200041845,5.50916656,113790.0,113780.0,0.0014]
[1754200044675,5.49540397,113790.0,113780.0,0.0014]
[1754200046955,5.49540508,113790.0,113780.0,0.0014]
[1754200047204,5.47578508,113790.0,113780.0,0.0014]
[1754200048041,5.48954757,113790.0,113780.0,0.0014]
[1754200048262,5.14115571,113790.0,113780.0,0.03447]
[1754200048483,5.14115571,113790.0,113780.0,0.38584186]
[1754200049720,5.14115571,113790.0,113780.0,0.03745]
[1754200049927,5.00715571,113790.0,113780.0,0.03745]
[1754200050589,5.05207815,113790.0,113780.0,0.03745]
[1754200051529,5.0711031,113790.0,113780.0,0.03745]
[1754200052854,5.07106874,113790.0,113780.0,0.03745]
[1754200053310,4.93734874,113790.0,113780.0,0.03745]
[1754200053467,5.07106874,113790.0,113780.0,0.03745]
[1754200053631,4.93734874,113790.0,113780.0,0.03745]
[1754200053837,5.07106874,113790.0,113780.0,0.03745]
[1754200054878,5.05734625,113790.0,113780.0,0.03745]
[1754200056034,4.92358625,113790.0,113780.0,0.03745]
[1754200056229,5.05734625,113790.0,113780.0,0.03745]
[1754200056618,5.14618381,113790.0,113780.0,0.03745]
[1754200057688,5.14618711,113790.0,113780.0,0.03745]
[1754200057875,5.1599494,113790.0,113780.0,0.03745]
[1754200058921,5.1599094,113790.0,113780.0,0.03745]
[1754200059361,5.1599094,113790.0,113780.0,0.38584186]
[1754200060064,4.8615354,113790.0,113780.0,0.38584186]
[1754200061231,4.87487586,113790.0,113780.0,0.38584186]
[1754200062733,4.87487586,113790.0,113780.0,0.03745]
[1754200063086,4.87487586,113790.0,113780.0,0.38584186]
[1754200063944,4.87487586,113790.0,113780.0,0.03745]
[1754200065271,4.86111357,113790.0,113780.0,0.38584186]
[1754200066157,4.86111357,113790.0,113780.0,0.03745]
[1754200068234,4.87487572,113790.0,113780.0,0.03745]
[1754200069612,4.96371328,113790.0,113780.0,0.03745]
[1754200070274,4.98274318,113790.0,113780.0,0.03745]
[1754200072475,4.89390562,113790.0,113780.0,0.03745]
[1754200073424,5.24229748,113790.0,113780.0,0.03745]
[1754200074936,5.22853533,113790.0,113780.0,0.03745]
[1754200076522,4.89260232,113790.0,113780.0,0.03745]
[1754200077604,5.02644232,113790.0,113780.0,0.03745]
[1754200078515,5.02644232,113790.0,113780.0,0.0014]
[1754200078516,0.49557232,113790.0,113780.0,0.0014]
[1754200078877,5.04020478,113790.0,113780.0,0.0014]
[1754200079292,5.04020478,113790.0,113780.0,0.03226]
[1754200080122,5.04120478,113790.0,113780.0,0.03226]
[1754200080349,5.04120478,113790.0,113780.0,0.03532]
[1754200081176,5.04220478,113790.0,113780.0,0.03532]
[1754200081587,4.69381292,113790.0,113780.0,0.03532]
[1754200081791,5.04220478,113790.0,113780.0,0.03532]
[1754200084564,5.02844232,113790.0,113780.0,0.03532]
[1754200086518,5.04747241,113790.0,113780.0,0.03532]
[1754200088388,5.0722514,113790.0,113780.0,0.03532]
[1754200088974,5.08601317,113790.0,113780.0,0.03532]
[1754200089923,4.73762131,113790.0,113780.0,0.03532]
[1754200090075,5.08601317,113790.0,113780.0,0.03532]
[1754200090450,0.55514317,113790.0,113780.0,0.03532]
[1754200090656,5.08601317,113790.0,113780.0,0.03532]
[1754200094604,5.71948495,113790.0,113780.0,0.0004]
[1754200094818,4.53087,113780.0,113770.0,0.0004]
[1754200095007,5.02954119,113780.0,113770.0,0.0004]
[1754200095249,5.01302186,113780.0,113770.0,0.0004]
[1754200095473,5.03780492,113780.0,113770.0,0.03226]
[1754200095664,5.03780492,113780.0,113770.0,0.03532]
[1754200098020,5.05682352,113780.0,113770.0,0.03532]
[1754200098243,5.0567877,113780.0,113770.0,0.03532]
[1754200098491,5.0567877,113780.0,113770.0,0.0004]
[1754200098728,5.0567877,113780.0,113760.0,0.03226]
[1754200098729,5.33355883,113780.0,113760.0,0.03226]
[1754200098943,5.01302186,113770.0,113760.0,0.03226]
[1754200099162,5.0377691,113770.0,113760.0,0.0004]
[1754200099386,5.07725541,113770.0,113760.0,0.0004]
[1754200100051,4.72886355,113770.0,113760.0,0.0004]
[1754200100271,5.14708666,113770.0,113760.0,0.0004837]
[1754200100955,5.14808666,113770.0,113760.0,0.0004837]
[1754200101175,5.0387691,113770.0,113760.0,0.0354037]
[1754200102527,0.5078991,113770.0,113760.0,0.0354037]
[1754200102718,5.0387691,113770.0,113760.0,0.0354037]
[1754200103299,5.0387691,113770.0,113760.0,0.0004837]
[1754200104200,5.03875881,113770.0,113760.0,0.0004837]
[1754200104416,5.12759637,113770.0,113760.0,0.0004837]
[1754200105336,5.14807637,113770.0,113760.0,0.0004837]
[1754200105755,5.12759637,113770.0,113760.0,0.0004837]
[1754200105960,5.03875881,113770.0,113760.0,0.0004837]
[1754200106098,5.03875881,113770.0,113760.0,0.0354037]
[1754200108307,4.69036695,113770.0,113760.0,0.0354037]
[1754200108523,5.03875881,113770.0,113760.0,0.0354037]
[1754200112537,5.03875551,113770.0,113760.0,0.0354037]
[1754200113580,5.12759307,113770.0,113760.0,0.0354037]
[1754200115321,5.03875551,113770.0,113760.0,0.0354037]
[1754200115965,5.03875551,113770.0,113760.0,0.0374737]
[1754200117822,5.03873652,113770.0,113760.0,0.0374737]
[1754200118285,4.55658466,113770.0,113760.0,0.0374737]
[1754200118523,4.69030466,113770.0,113760.0,0.38586556]
[1754200118968,4.67382822,113770.0,113760.0,0.38586556]
[1754200119185,4.54010822,113770.0,113760.0,0.77288398]
[1754200119402,4.67383017,113770.0,113760.0,0.77288398]
[1754200119637,4.66559,113770.0,113760.0,0.42449212]
[1754200120092,4.67383004,113770.0,113760.0,0.42449212]
[1754200120312,4.67383004,113770.0,113760.0,0.42549212]
[1754200120548,0.14296004,113770.0,113760.0,0.07710026]
[1754200120756,4.67383004,113770.0,113760.0,0.38686556]
[1754200121185,4.54011004,113770.0,113760.0,0.38686556]
[1754200121449,4.69031725,113770.0,113760.0,0.38686556]
[1754200121676,4.68931725,113770.0,113760.0,0.38686556]
[1754200121888,4.68931725,113770.0,113760.0,0.41430956]
[1754200122104,4.67283004,113770.0,113760.0,0.41430956]
[1754200122323,4.68932259,113770.0,113760.0,0.41430956]
[1754200123184,4.67283004,113770.0,113760.0,0.41430956]
[1754200124300,4.68933672,113770.0,113760.0,0.41430956]
[1754200129784,4.68934934,113770.0,113760.0,0.41430956]
[1754200130438,4.67284266,113770.0,113760.0,0.41430956]
[1754200133641,4.68934582,113770.0,113760.0,0.38786556]
[1754200134262,4.68934582,113770.0,113760.0,0.0394737]
[1754200140819,4.77818338,113770.0,113760.0,0.0394737]
[1754200141565,4.77818338,113770.0,113760.0,0.0374037]
[1754200141784,5.05584768,113770.0,113760.0,0.0024837]
[1754200142615,5.05584768,113770.0,113760.0,0.0004837]
[1754200146174,5.05584985,113770.0,113760.0,0.0004837]
[1754200147887,5.06961465,113770.0,113760.0,0.0004837]
[1754200148306,5.08863597,113770.0,113760.0,0.0004837]
[1754200148964,5.08864964,113770.0,113760.0,0.0004837]
[1754200149717,4.70312646,113770.0,113760.0,0.0004837]
[1754200149938,4.70312646,113770.0,113760.0,0.0353837]
[1754200154822,4.68936166,113770.0,113760.0,0.0353837]
[1754200159080,4.70312618,113770.0,113760.0,0.0353837]
[1754200160469,0.17225618,113770.0,113760.0,0.0353837]
[1754200160695,4.70312618,113770.0,113760.0,0.0353837]
[1754200160910,4.70308618,113770.0,113760.0,0.42425312]
[1754200161086,4.70308647,113770.0,113760.0,0.42425312]
[1754200161331,4.68657174,113770.0,113760.0,0.38583556]
[1754200161547,4.70308528,113770.0,113760.0,0.38583556]
[1754200161958,4.70308528,113770.0,113760.0,0.38683556]
[1754200162554,4.70308528,113770.0,113760.0,0.38783556]
[1754200162973,4.7030849,113770.0,113760.0,0.38783556]
[1754200163375,4.68657174,113770.0,113760.0,0.38783556]
[1754200168593,4.492304,113770.0,113760.0,0.38783556]
[1754200168994,4.50606791,113770.0,113760.0,0.38783556]
[1754200173099,0.14744391,113770.0,113760.0,0.38783556]
[1754200173316,0.14744391,113770.0,113760.0,0.0394437]
[1754200173525,4.50606791,113770.0,113760.0,0.0394437]
[1754200175490,4.52257559,113770.0,113760.0,0.0394437]
[1754200175960,4.52257559,113770.0,113760.0,0.0024837]
[1754200175961,4.87096745,113770.0,113760.0,0.0024837]
[1754200176190,4.88791745,113770.0,113760.0,0.0024837]
[1754200176621,4.52257559,113770.0,113760.0,0.0024837]
[1754200176831,4.52257559,113770.0,113760.0,0.0348737]
[1754200177506,4.52257651,113770.0,113760.0,0.0348737]
[1754200178584,4.52257651,113770.0,113760.0,0.0380537]
[1754200179656,4.52257651,113770.0,113760.0,0.38854556]
[1754200180128,4.52257651,113770.0,113760.0,0.42744012]
[1754200180362,4.50606791,113770.0,113760.0,0.42744012]
[1754200180792,4.51432252,113770.0,113760.0,0.42744012]
[1754200181544,4.51432252,113770.0,113760.0,0.38854556]
[1754200184812,0.15569852,113770.0,113760.0,0.38854556]
[1754200185027,4.51432252,113770.0,113760.0,0.38854556]
[1754200189903,4.188631,113770.0,113760.0,0.38854556]
[1754200190093,4.20239509,113770.0,113760.0,0.38854556]
[1754200191161,4.33607509,113770.0,113760.0,0.38854556]
[1754200197295,4.33607509,113770.0,113760.0,0.0401537]
[1754200197510,4.33607509,113770.0,113760.0,0.38854556]
[1754200200956,4.33607509,113770.0,113760.0,0.0401537]
[1754200201170,4.33607509,113770.0,113760.0,0.38854556]
[1754200205326,4.34433247,113770.0,113760.0,0.38854556]
[1754200206265,0.15570147,113770.0,113760.0,0.38854556]
[1754200206483,4.34433247,113770.0,113760.0,0.38854556]
[1754200206806,4.34433247,113770.0,113760.0,0.0401537]
[1754200207021,4.34433247,113770.0,113760.0,0.38854556]
[1754200209245,4.36085107,113770.0,113760.0,0.38854556]
[1754200210943,4.00880642,113770.0,113760.0,0.38854556]
[1754200211082,4.0088066,113770.0,113760.0,0.38854556]
[1754200211294,4.02257067,113770.0,113760.0,0.38854556]
[1754200212100,4.15621067,113770.0,113760.0,0.38854556]
[1754200216777,4.15621342,113770.0,113760.0,0.38854556]
[1754200217257,4.13965207,113770.0,113760.0,0.43008442]
[1754200217496,4.125888,113770.0,113760.0,0.43008442]
[1754200217760,0.1336,113780.0,113760.0,0.91207628]
[1754200217942,3.992288,113770.0,113760.0,0.57200444]
[1754200218146,3.992288,113770.0,113760.0,0.9203963]
[1754200218599,3.992288,113770.0,113760.0,0.9547063]
[1754200221464,3.992288,113770.0,113760.0,0.9557063]
[1754200228170,0.01376245,113770.0,113760.0,0.9557063]
[1754200241269,0.01376245,113770.0,113760.0,0.60731444]
[1754200245536,0.01376245,113770.0,113760.0,0.12532258]
[1754200245753,0.01376245,113770.0,113760.0,0.56573558]
[1754200253093,0.19419687,113790.0,113760.0,0.21734372]
[1754200253292,3.992288,113780.0,113770.0,0.03275]
[1754200253521,3.992288,113780.0,113770.0,0.38114186]
[1754200253724,4.00605104,113780.0,113770.0,0.40758186]
[1754200253925,4.00605104,113780.0,113770.0,0.46400432]
[1754200254176,4.00605104,113780.0,113770.0,0.46724432]
[1754200256315,4.00605104,113780.0,113770.0,0.41082186]
[1754200260082,0.0303708,113790.0,113770.0,1.11883274]
[1754200260339,0.05270117,113820.0,113780.0,1.22573996]
[1754200260559,4.04331355,113820.0,113800.0,0.35744902]
[1754200260777,4.04331355,113820.0,113800.0,0.52381902]
[1754200260778,3.992288,113810.0,113800.0,0.52381902]
[1754200260989,3.992288,113810.0,113800.0,0.87732088]
[1754200261193,3.992288,113810.0,113800.0,0.87515088]
[1754200261398,3.992288,113810.0,113800.0,0.55318802]
[1754200261612,4.02243761,113810.0,113800.0,0.90157988]
[1754200261825,4.02291355,113810.0,113800.0,0.90157988]
[1754200262032,4.02291355,113810.0,113800.0,0.984191]
[1754200262468,4.02291355,113810.0,113800.0,0.987191]
[1754200263082,4.03667224,113810.0,113800.0,0.987191]
[1754200263750,4.03667224,113810.0,113800.0,0.63879914]
[1754200264178,4.03667224,113810.0,113800.0,0.90563988]
[1754200265148,4.03667224,113810.0,113800.0,0.90263988]
[1754200265551,4.03667224,113810.0,113800.0,0.90757988]
[1754200266353,4.03667224,113810.0,113800.0,0.90357988]
[1754200267746,4.02291355,113810.0,113800.0,0.90557988]
[1754200267948,4.02291355,113810.0,113800.0,0.55718802]
[1754200268150,4.02291355,113810.0,113800.0,0.90557988]
[1754200269540,4.02291355,113810.0,113800.0,0.99441744]
[1754200270787,4.03667222,113810.0,113800.0,0.88813086]
[1754200273839,4.03667222,113810.0,113800.0,0.89030086]
[1754200275566,0.04438422,113810.0,113800.0,0.89030086]
[1754200275698,4.02291355,113810.0,113800.0,0.89030086]
[1754200277750,0.03062555,113810.0,113800.0,0.90774988]
[1754200277961,0.03062555,113810.0,113800.0,1.3449793]
[1754200277962,0.00047594,113810.0,113800.0,1.3449793]